[Event "LR Global GM Aspirant-1 2024"]
[Site "Dhaka"]
[Date "2024.02.17"]
[Round "7.5"]
[White "Liyanage, Ranindu Dilshan"]
[Black "Panesar Vedant"]
[Result "0-1"]
[ECO "C26"]
[WhiteElo "2366"]
[BlackElo "2452"]
[Annotator "TA"]
[PlyCount "126"]
[EventDate "2024.02.12"]
[EventType "tourn"]
[EventCountry "BAN"]
[SourceTitle "playchess.com"]
[Source "ChessBase"]
[SourceQuality "1"]
[TimeControl "5400+30"]

{[%evp 45,126,-28,-26,-27,-26,-27,-27,-36,-24,-25,-24,-36,-25,-27,-28,-33,-11,-18,0,-41,-27,-27,-27,-79,-83,-73,-41,-50,-57,-97,-8,-157,-167,-180,-72,-78,-78,-93,-86,-79,-83,-59,-57,-136,-68,-229,-210,-635,-669,-772,-733,-1228,-1191,-1205,-1185,-1472,-1472,-1436,-1373,-1483,-1392,-1269,-1017,-1572,-1405,-29964,-1666,-29968,-29968,-29975,-29976,-29974,-12794,-29981,-29981,-29980,-29981,-29982,-29983,-29989,-29990,-29992,-29991]} 1. e4 {[%emt 1:31:00]} e5 {[%emt 0:00:07]} 2. Nc3 {[%emt 0:00:00]} Nf6 {[%emt 0:00:08]} 3. d4 {[%emt 0:00:00]} exd4 {[%emt 0:00:12]} 4. Qxd4 {[%emt 0:00:00]} Nc6 {[%emt 0:00:05]} 5. Qd3 {[%emt 0:00:00]} Bc5 {[%emt 0:00:10]} 6. Bf4 {[%emt 0:00:00] C26: Vienna Game: 2...Nf6, sidelines .} O-O {[%emt 0:00:11]} 7. f3 {[%emt 0:00:00]} d5 {[%emt 0:00:07]} 8. O-O-O {[%emt 0:00:00]} dxe4 $146 {[%emt 1:33:30]} ({Predecessor:} 8... d4 9. Nb1 Be6 10. a3 Qe7 11. Bg5 h6 12. Bh4 Ne5 13. Qd2 Ng6 14. Bg3 Rfd8 {0-1 Mamedyarov,S (2782)-Le,Q (2709) Saint Louis Rapid 2021 (3)}) 9. Nxe4 Nxe4 {[%emt 0:00:00]} 10. Qxd8 {[%emt 0:00:00]} Nxd8 {[%emt 0:00:00]} 11. fxe4 {[%emt 0:00:00]} Ne6 {[%emt 0:00:00]} 12. Bg3 {[%emt 0:00:00]} Be3+ {[%emt 0:00:00]} 13. Kb1 {[%emt 0:00:00]} Bf4 {[%emt 0:00:00]} 14. Ne2 {[%emt 0:00:00]} Bxg3 {[%emt 0:00:00]} 15. Nxg3 {[%emt 0:00:00]} Nf4 {[%emt 0:00:00]} 16. Nf5 {[%emt 0:00:00]} Be6 {[%emt 0:00:00]} 17. g3 {[%emt 0:00:00]} Ng6 {[%emt 0:00:00]} 18. Nd4 {[%emt 0:00:00]} Rfe8 {[%emt 0:00:00]} 19. Nxe6 {[%emt 0:00:00]} Rxe6 {[%emt 0:00:00]} 20. Rd7 {[%emt 0:00:00]} Re7 {[%emt 0:00:00]} 21. Rxe7 {[%emt 0:00:00]} Nxe7 {[%emt 0:00:00]} 22. Bc4 {[%emt 0:00:00]} Ng6 {[%emt 0:00:00]} 23. Rd1 {[%emt 0:00:00]} Ne5 {[%emt 0:00:00]} 24. Be2 {[%emt 0:00:00]} Kf8 {[%emt 0:00:00]} 25. c3 {[%emt 0:00:00]} Ke7 {[%emt 0:00:00]} 26. Kc2 {[%emt 0:00:00]} f6 {[%emt 0:00:00]} 27. b3 {[%emt 0:00:00]} a5 {[%emt 0:00:00]} 28. a4 {[%emt 0:00:00]} c6 {[%emt 0:00:00]} 29. Rf1 {[%emt 0:00:00]} Rd8 {[%emt 0:00:00]} 30. Re1 {[%emt 0:00:00]} Nd7 {[%emt 0:00:00]} 31. Bg4 {[%emt 0:00:00]} Ne5 {[%emt 0:00:00]} 32. Be2 $1 {[%emt 0:00:00]} Rh8 {[%emt 0:00:00]} 33. Kd2 {[%emt 0:00:00]} Nd7 {[%emt 0:00:00]} 34. Bg4 {[%emt 0:00:00] [#]} (34. Ke3 $11 {keeps the balance.}) 34... Nc5 $1 $17 {[%emt 0:00:00]} 35. Kc2 {[%emt 0:00:00]} h5 {[%emt 0:00:00]} 36. Bf5 {[%emt 0:00:00]} h4 {[%emt 0:00:00]} 37. g4 {[%emt 0:03:23]} Kf7 {[%emt 0:00:00]} ({Better is} 37... Rd8 $17 {next ...Kf7 is good for Black.} 38. e5 Kf7 39. exf6 Kxf6) 38. g5 {[%emt 0:11:49]} (38. Rd1 $1 $11 g6 39. b4 gxf5 (39... Nxa4 $2 40. Rd7+ Kf8 41. Bxg6 $18) 40. exf5 axb4 (40... Nxa4 41. Rd7+ Kf8 42. Rxb7 $11) 41. cxb4 Nxa4 42. Rd7+ Kf8 43. Rxb7) 38... g6 $17 {[%emt 0:00:00]} 39. Bh3 {[%emt 0:01:51]} Re8 {[%emt 0:00:00]} (39... fxg5 $19 40. e5 Rd8 41. e6+ Ke7) 40. gxf6 {[%emt 0:01:17]} Kxf6 {[%emt 0:00:00]} (40... Rxe4 41. Rxe4 Nxe4 42. b4 axb4 (42... Nxf6 43. bxa5 Ke8 44. Bc8 $11) 43. cxb4 $15) 41. Rf1+ {[%emt 0:00:11]} Kg5 {[%emt 0:00:00]} 42. Rg1+ {[%emt 0:00:05]} Kh5 {[%emt 0:00:00]} 43. Bg4+ {[%emt 0:00:10]} Kh6 {[%emt 0:00:00]} 44. Re1 {[%emt 0:00:07]} (44. b4 $15 axb4 (44... Nxa4 45. Kb3 $15) (44... Nxe4 45. Re1 $15) 45. cxb4 Nxa4 46. Re1) 44... Kg5 {[%emt 0:00:00]} ({Much worse is} 44... Nxe4 $6 45. Bd7 Re7 46. Bh3 $11) (44... Rxe4 $17 45. Rxe4 Nxe4) 45. h3 $2 {[%emt 0:00:24]} (45. Rg1 $15 Kh6 (45... Rxe4 $2 46. Bf3+ Kf5 47. Bxe4+ Nxe4 48. Rf1+ Kg4 49. b4 $18) 46. Re1) 45... Rxe4 $19 {[%emt 0:00:00]} 46. Rxe4 $2 {[%emt 0:02:22]} (46. Rg1 Re3 47. Rf1) 46... Nxe4 $19 {[%emt 0:00:00]} 47. b4 {[%emt 0:00:15]} b6 {[%emt 0:00:00]} 48. Bf3 {[%emt 0:00:55] [#]} Kf4 $1 {[%emt 0:00:00]} 49. Bg2 {[%emt 0:00:31]} Ke3 {[%emt 0:01:14]} 50. Kb3 {[%emt 0:00:33]} Nd2+ {[%emt 0:00:02]} 51. Kc2 {[%emt 0:00:24]} Nf3 {[%emt 0:01:23]} 52. Kb3 {[%emt 0:00:37]} Ne5 {[%emt 0:00:41]} 53. Kc2 {[%emt 0:00:33]} g5 {[%emt 0:00:14]} 54. Kb3 {[%emt 0:00:17]} c5 {[%emt 0:01:18]} 55. bxc5 {[%emt 0:00:13]} bxc5 {[%emt 0:00:01]} 56. Bd5 {[%emt 0:00:13]} Kf4 {[%emt 0:01:12]} 57. Kc2 {[%emt 0:00:15]} Kg3 {[%emt 0:01:28]} 58. Be6 {[%emt 0:00:05]} g4 {[%emt 0:00:43]} 59. hxg4 {[%emt 0:00:06]} h3 {[%emt 0:00:46]} 60. Bd5 {[%emt 0:01:48]} Nf3 {[%emt 0:00:21]} 61. g5 {[%emt 0:00:06]} h2 {[%emt 0:00:16]} 62. g6 {[%emt 0:00:04]} h1=Q {[%emt 0:00:07]} (62... h1=R $2 {too greedy.} 63. g7 Rh4 64. g8=Q+ $18 (64. g8=B $2 Ne5 $19)) 63. g7 {[%emt 0:00:03]} Qh7+ {[%emt 0:00:09]} 0-1

[Event "LR Global GM Aspirant-1 2024"]
[Site "Dhaka"]
[Date "2024.02.18"]
[Round "8.2"]
[White "Mohammad Fahad, Rahman"]
[Black "Liyanage, Ranindu Dilshan"]
[Result "1-0"]
[ECO "D38"]
[WhiteElo "2418"]
[BlackElo "2366"]
[Annotator "TA"]
[PlyCount "93"]
[EventDate "2024.02.12"]
[EventType "tourn"]
[EventCountry "BAN"]
[SourceTitle "playchess.com"]
[Source "ChessBase"]
[SourceQuality "1"]
[TimeControl "5400+30"]

{[%evp 13,93,8,22,21,46,43,49,31,40,28,41,46,59,56,55,55,58,48,82,62,67,47,76,45,45,2,34,38,35,35,40,29,38,33,33,31,30,35,39,27,33,24,27,24,37,32,63,44,77,76,75,78,153,168,187,189,191,195,290,279,287,257,630,30,22,21,526,516,509,519,523,526,496,506,599,503,472,466,422,418,29990,29991]} 1. d4 {[%emt 0:00:16]} d5 {[%emt 0:01:49]} 2. c4 {[%emt 0:00:30]} e6 {[%emt 0:00:23]} 3. Nc3 {[%emt 0:00:07]} Nf6 {[%emt 0:00:07]} 4. Nf3 {[%emt 0:00:10]} Bb4 {[%emt 0:00:52]} 5. Qa4+ {[%emt 0:00:17]} Nc6 {[%emt 0:00:09]} 6. e3 {[%emt 0:00:05]} O-O {[%emt 0:00:16]} 7. Bd2 {[%emt 0:00:05]} a6 {[%emt 0:02:03]} 8. a3 {[%emt 0:01:03]} Bxc3 {[%emt 0:15:16]} 9. Bxc3 {[%emt 0:00:18]} Ne7 {[%emt 0:02:53]} 10. Qc2 {[%emt 0:00:36] White is slightly better.} b6 {[%emt 0:03:36]} 11. cxd5 {[%emt 0:04:44]} exd5 {[%emt 0:04:14]} 12. Bd3 {[%emt 0:01:02]} Bb7 {[%emt 0:00:51]} 13. O-O {[%emt 0:00:27]} Ne4 {[%emt 0:08:08]} 14. Rac1 {[%emt 0:03:56]} Rc8 {[%emt 0:01:21]} 15. Rfd1 {[%emt 0:01:29]} Ng6 {[%emt 0:06:38]} 16. b4 {[%emt 0:08:19]} Qe7 {[%emt 0:01:20]} 17. Bb2 {[%emt 0:02:08]} f6 {[%emt 0:14:29]} 18. Nd2 {[%emt 0:11:05]} f5 {[%emt 0:01:42]} 19. f4 {[%emt 0:12:53]} Nh8 {[%emt 0:05:10]} 20. Nf3 {[%emt 0:01:24]} Nf7 {[%emt 0:00:43]} 21. Qe2 {[%emt 0:06:35]} b5 {[%emt 0:08:55]} 22. Bc3 {[%emt 0:01:20]} Nfd6 {[%emt 0:05:08]} 23. Ne5 {[%emt 0:01:40]} Nc4 {[%emt 0:00:57]} 24. Bxe4 {[%emt 0:02:27]} fxe4 {[%emt 0:01:11]} 25. Ra1 {[%emt 0:01:29]} Rce8 {[%emt 0:02:24]} 26. Rf1 {[%emt 0:00:35]} Bc8 {[%emt 0:01:17]} 27. Kh1 {[%emt 0:02:07]} Qe6 {[%emt 0:01:46]} 28. a4 {[%emt 0:00:48][%cal Ba3a4,Ba4a5][%mdl 32]} Bd7 {[%emt 0:01:52]} 29. a5 $1 {[%emt 0:02:30]} Kh8 {[%emt 0:01:00]} 30. Rac1 {[%emt 0:00:44]} Rf6 {[%emt 0:01:09]} 31. g4 {[%emt 0:01:00]} Bc8 {[%emt 0:02:44]} 32. Be1 {[%emt 0:01:22]} Nxe5 {[%emt 0:02:18]} (32... Qe7 $142) 33. dxe5 $16 {[%emt 0:00:39]} Rf7 {[%emt 0:00:04]} 34. Rg1 {[%emt 0:07:57]} d4 {[%emt 0:00:06] [#]} 35. Rc5 $1 {[%emt 0:00:14] f5 would now be deadly.} (35. exd4 Rxf4 36. Qe3 Rf7 $17) 35... g6 {[%emt 0:02:19]} (35... Qb3 {was necessary.}) 36. exd4 $18 {[%emt 0:02:31]} Bb7 {[%emt 0:02:11] Prevents d5. aiming for ...e3+.} 37. Qe3 {[%emt 0:00:41]} Ref8 $2 {[%emt 0:00:12]} (37... Bd5 38. Bh4 c6) 38. Bg3 $2 {[%emt 0:08:36]} ({Better is} 38. f5 $18 gxf5 39. d5 (39. gxf5 Rxf5 40. d5 Bxd5 $18) 39... Bxd5 (39... Qxe5 $2 40. Bc3 $18) 40. gxf5 Rxf5 41. Rxd5) 38... Qxg4 $11 {[%emt 0:00:06]} 39. d5 {[%emt 0:00:05][%cal Oe5e6] Black must now prevent e6!} Rd8 $2 {[%emt 0:00:47][%mdl 8192] Loses the game.} (39... Kg8 $11) 40. e6 $18 {[%emt 0:01:11]} (40. Qxe4 $2 Rxd5 41. Qg2 (41. Rxd5 $2 Rd7 $19) 41... Rxc5 42. Qxb7 Rc2 $19) 40... Re7 {[%emt 0:01:13]} 41. f5 {[%emt 0:07:23] Intending Be5+ and mate.} (41. Qxe4 Rxe6 42. Qd3 Kg8 $19) 41... Qf3+ {[%emt 0:00:14] Black is weak on the dark squares} 42. Qxf3 {[%emt 0:00:14]} exf3 {[%emt 0:00:06]} 43. Rd1 {[%emt 0:01:09]} (43. Bxc7 $2 Rxd5 44. Bg3 f2 $19 (44... gxf5 $2 45. Rxd5 h6 46. Rd8+ Kh7 47. Bf2 $18) (44... Rxf5 $2 45. Bf2 $19)) (43. Rxc7 $2 Rxc7 (43... f2 $2 44. Rxb7 fxg1=Q+ 45. Kxg1 $19) 44. h4 Rc2 $19 (44... f2 $2 45. Bxf2 Rxd5 46. Re1 $19)) 43... gxf5 {[%emt 0:00:42]} 44. Bh4 {[%emt 0:02:33] White threatens Bf6+ and mate.} f2 {[%emt 0:01:06]} 45. Kg2 {[%emt 0:00:32]} ({Not} 45. Bxe7 Rxd5 46. Kg2 (46. Bf6+ Kg8 $14) 46... Rxc5+ 47. Kxf2 Rc2+ 48. Ke3 Kg7 $16) (45. Bxf2 Rxe6 46. Bg3 Re4 $11) 45... Rxe6 {[%emt 0:00:06] [#]} 46. Kxf2 $1 {[%emt 0:00:21]} (46. Bxd8 Re1 47. Kxf2 (47. Bf6+ Kg8 $11) 47... Rxd1 $16) 46... Rd7 {[%emt 0:00:51]} (46... Rxd5 $18 47. Rdxd5 (47. Rcxd5 Bxd5 48. Rxd5 Re4 $18) 47... Bxd5) 47. dxe6 {[%emt 0:00:09] Weighted Error Value: White=0.24 (precise) /Black=0.54.  Loses game:     	---       	Black=1      Missed win:     	White=1     	---        Mistake:       	---       	Black=4      Inaccurate:     	White=2     	Black=5      OK:         	White=10    	Black=15     Best:        	White=5     	Black=2      Strong:       	White=3     	---} 1-0

[Event "LR Global GM Aspirant-1 2024"]
[Site "Dhaka"]
[Date "2024.02.18"]
[Round "8.3"]
[White "Siddharth, Jagadeesh"]
[Black "Rahman, Ziaur"]
[Result "1-0"]
[ECO "D00"]
[WhiteElo "2457"]
[BlackElo "2428"]
[Annotator "TA"]
[PlyCount "53"]
[EventDate "2024.02.12"]
[EventType "tourn"]
[EventCountry "BAN"]
[SourceTitle "playchess.com"]
[Source "ChessBase"]
[SourceQuality "1"]
[TimeControl "5400+30"]

{[%evp 9,53,11,0,4,11,0,0,6,1,8,16,14,25,27,36,31,39,0,70,46,64,50,74,54,129,82,148,143,129,123,268,257,241,175,158,148,567,561,922,924,29993,29994,29994,29995,29995,29996]} 1. d4 {[%emt 0:00:54]} d5 {[%emt 0:01:25]} 2. Nc3 {[%emt 0:00:13]} e6 {[%emt 0:02:24]} 3. Bf4 {[%emt 0:00:32]} Bb4 {[%emt 0:03:15]} 4. Qd3 {[%emt 0:06:07]} Nf6 {[%emt 0:00:50]} 5. a3 {[%emt 0:00:13]} Bd6 {[%emt 0:00:35]} 6. Bxd6 {[%emt 0:03:55]} cxd6 {[%emt 0:01:40]} 7. e4 {[%emt 0:02:04]} dxe4 {[%emt 0:01:13]} 8. Nxe4 {[%emt 0:00:07] The position is equal.} O-O {[%emt 0:00:33]} 9. Nf3 {[%emt 0:00:06]} Nc6 {[%emt 0:01:49]} 10. O-O-O {[%emt 0:04:25]} d5 {[%emt 0:01:37]} 11. Nxf6+ {[%emt 0:05:31]} Qxf6 {[%emt 0:00:27]} 12. Qe3 {[%emt 0:01:18]} Bd7 {[%emt 0:01:32]} 13. Bd3 {[%emt 0:00:51]} Rfc8 {[%emt 0:00:26]} ({Black should play} 13... Qe7 $11) 14. h4 $1 $14 {[%emt 0:03:11]} a6 {[%emt 0:01:17]} 15. h5 {[%emt 0:17:17]} Qe7 {[%emt 0:03:36]} 16. g4 {[%emt 0:00:56]} f6 {[%emt 0:09:49]} (16... Na5 $1 $14) 17. Rde1 {[%emt 0:04:28] White is more active.} (17. g5 $142) 17... h6 {[%emt 0:01:00]} (17... e5 $142) 18. c3 $16 {[%emt 0:02:50]} e5 {[%emt 0:07:49]} 19. dxe5 {[%emt 0:00:41]} Bxg4 {[%emt 0:03:34]} (19... Nxe5 $16 20. Nxe5 Qxe5) 20. Rhg1 $18 {[%emt 0:04:32]} f5 {[%emt 0:00:44]} 21. Nd4 {[%emt 0:00:06]} Nxd4 {[%emt 0:01:45]} 22. Qxd4 {[%emt 0:00:03] Black must now prevent Rg3.} Qc5 $2 {[%emt 0:01:40][%mdl 8192] Black cannot hold the game after this.} (22... Rf8 $16 {is more resistant.} 23. Be2 (23. Qxd5+ Kh8 $16) 23... Rac8) 23. Qf4 {[%emt 0:05:35]} d4 {[%emt 0:00:06]} 24. Bxf5 {[%emt 0:01:34]} (24. f3 dxc3 25. Qb4 (25. fxg4 cxb2+ 26. Kd2 Qc3+ 27. Ke2 Rc5 $11) 25... cxb2+ (25... Bxf3 26. Bxf5 cxb2+ 27. Kxb2 $11) 26. Kxb2 Qf2+ (26... Bxh5 27. Bxf5 Qxb4+ 28. axb4 $17) 27. Ka1 Qxf3 (27... Bxf3 28. Rxg7+ Kxg7 29. Qe7+ Kh8 30. Qf6+ Kg8 31. Qe6+ Kh8 32. Qxh6+ Kg8 33. Qe6+ Kh8 34. Qh6+ Kg8 35. Qe6+ Kh8 36. Qh6+ $11) 28. Qb3+ Kh8 $17) 24... Bxf5 {[%emt 0:02:03] [#]} 25. Rxg7+ $3 {[%emt 0:00:32][%mdl 512] White mates.} Kxg7 {[%emt 0:00:04]} 26. Rg1+ {[%emt 0:00:06]} (26. Qxf5 $2 {perishes.} Rc6 (26... dxc3 27. Rg1+ Kh8 28. Qf6+ Kh7 29. Qg7#) 27. Rd1 Re8 (27... dxc3 28. Rd7+) 28. Qg4+ Kh8 29. Rxd4 Qxe5 $19) 26... Kf7 {[%emt 0:00:20]} 27. Qxf5+ {[%emt 0:00:04] Weighted Error Value: White=0.08 (flawless) /Black=0.86.  Loses game:     	---       	Black=1      Mistake:       	White=1     	Black=4      Inaccurate:     	White=1     	Black=2      OK:         	White=7     	Black=6      Best:        	White=3     	---        Strong:       	White=1     	---} 1-0

[Event "LR Global GM Aspirant-1 2024"]
[Site "Dhaka"]
[Date "2024.02.18"]
[Round "8.4"]
[White "Aradhya, Garg"]
[Black "Barua, Dibyendu"]
[Result "1-0"]
[ECO "D46"]
[WhiteElo "2390"]
[BlackElo "2404"]
[Annotator "TA"]
[PlyCount "69"]
[EventDate "2024.02.12"]
[EventType "tourn"]
[EventCountry "BAN"]
[SourceTitle "playchess.com"]
[Source "ChessBase"]
[SourceQuality "1"]
[TimeControl "5400+30"]

{[%evp 21,69,32,27,34,39,17,24,10,18,16,38,26,40,-25,-35,-47,0,0,0,0,398,243,375,253,267,280,283,277,261,267,622,615,613,624,537,637,636,625,646,642,709,707,5373,4948,29993,29994,29994,29995,29995,508]} 1. d4 {[%emt 0:00:02]} d5 {[%emt 0:01:28]} 2. c4 {[%emt 0:00:04]} e6 {[%emt 0:00:07]} 3. Nf3 {[%emt 0:00:03]} Nf6 {[%emt 0:00:08]} 4. Nc3 {[%emt 0:00:02]} c6 {[%emt 0:01:42]} 5. e3 {[%emt 0:00:05]} Nbd7 {[%emt 0:00:26]} 6. Qc2 {[%emt 1:33:14]} Be7 {[%emt 0:02:11]} 7. b3 {[%emt 0:00:00]} O-O {[%emt 0:00:21]} 8. Bd3 {[%emt 0:00:00]} b6 {[%emt 0:05:19]} 9. O-O {[%emt 0:00:00]} Bb7 {[%emt 0:02:25]} 10. Bb2 {[%emt 0:00:00]} Rc8 {[%emt 0:05:35]} 11. Rad1 {[%emt 0:00:00]} h6 {[%emt 0:16:53]} 12. Qe2 {[%emt 0:00:00]} Qc7 {[%emt 0:12:54]} 13. e4 {[%emt 0:00:00]} dxe4 {[%emt 0:00:46]} 14. Nxe4 {[%emt 0:00:00] White has an edge.} Nxe4 {[%emt 0:02:30]} 15. Bxe4 {[%emt 0:00:00]} Nf6 {[%emt 0:00:40]} 16. Bb1 {[%emt 0:00:00]} Rfd8 {[%emt 0:09:21] [#]} 17. c5 {[%emt 0:00:00]} bxc5 $11 {[%emt 0:04:19]} 18. dxc5 {[%emt 0:00:00]} Bxc5 {[%emt 0:01:39]} (18... Qa5 $1 $15 19. Bd3 Bxc5) 19. Bxf6 {[%emt 0:00:00]} gxf6 {[%emt 0:00:01]} 20. Qc2 $1 {[%emt 0:00:00]} Bb6 $2 {[%emt 0:04:14][%mdl 8192] Black is on the road to losing.} (20... Rxd1 $11 {and Black stays safe.} 21. Rxd1 Rd8) 21. Qh7+ $18 {[%emt 0:00:00]} Kf8 {[%emt 0:00:02]} 22. Qxh6+ {[%emt 0:00:00]} Ke7 {[%emt 0:00:22] [#] ...Rh8 is the strong threat.} 23. Nh4 $1 {[%emt 0:00:00][%cal Oh4g6] White threatens Ng6+! and mate.} Rd5 {[%emt 0:05:42]} 24. Rxd5 {[%emt 0:00:00]} cxd5 {[%emt 0:01:53] [#]} 25. Nf5+ $1 {[%emt 0:00:00]} exf5 $2 {[%emt 0:13:31]} (25... Kd7) 26. Re1+ {[%emt 0:00:00]} Qe5 {[%emt 0:00:06]} 27. Rxe5+ {[%emt 0:00:00]} fxe5 {[%emt 0:00:02]} 28. Bxf5 {[%emt 0:00:00]} Rc6 {[%emt 0:03:33]} 29. Qg5+ {[%emt 0:00:00]} Kf8 {[%emt 0:00:23]} 30. h4 {[%emt 0:00:00][%cal Bh2h4,Bh4h5,Bh5h6][%mdl 32] Black must now prevent h5.} e4 {[%emt 0:00:02]} 31. h5 {[%emt 0:00:00] aiming for h6.} Rc2 {[%emt 0:03:18]} 32. h6 {[%emt 0:00:00] White wants to mate with Qg7+.} Rxf2 {[%emt 0:00:06]} 33. Qg7+ {[%emt 0:00:00] White mates.} Ke7 {[%emt 0:00:19]} 34. Qe5+ {[%emt 0:00:00]} Kd8 {[%emt 0:00:17]} 35. Qd6+ {[%emt 0:00:00] Weighted Error Value: White=0.16 (very precise) /Black=0.84.  Loses game:     	---       	Black=1      Mistake:       	White=1     	Black=2      Inaccurate:     	White=1     	Black=1      OK:         	White=2     	Black=3      Best:        	White=3     	---        Strong:       	White=3     	---} 1-0

[Event "LR Global GM Aspirant-1 2024"]
[Site "Dhaka"]
[Date "2024.02.18"]
[Round "8.5"]
[White "Mayank Chakraborty"]
[Black "Murshed, Niaz"]
[Result "1-0"]
[ECO "E04"]
[WhiteElo "2409"]
[BlackElo "2363"]
[Annotator "TA"]
[PlyCount "67"]
[EventDate "2024.02.12"]
[EventType "tourn"]
[EventCountry "BAN"]
[SourceTitle "playchess.com"]
[Source "ChessBase"]
[SourceQuality "1"]
[TimeControl "5400+30"]

{[%evp 15,67,24,27,24,41,37,40,36,54,40,69,8,73,63,70,58,62,61,104,104,101,105,106,115,105,104,88,104,97,82,141,132,128,112,120,122,127,124,131,106,121,122,109,30,39,0,49,59,67,49,49,0,244,255]} 1. d4 {[%emt 0:00:02]} Nf6 {[%emt 0:04:42]} 2. c4 {[%emt 0:00:04]} e6 {[%emt 0:00:21]} 3. g3 {[%emt 0:00:04]} Bb4+ {[%emt 0:01:09]} 4. Nd2 {[%emt 0:00:07]} d5 {[%emt 0:06:34]} 5. Bg2 {[%emt 0:00:06]} O-O {[%emt 0:00:16]} 6. Ngf3 {[%emt 0:00:03]} dxc4 {[%emt 0:03:04]} 7. Qc2 {[%emt 0:00:07]} Nc6 {[%emt 0:03:51]} 8. Qxc4 {[%emt 0:00:18]} Qd5 {[%emt 0:03:05]} 9. O-O {[%emt 0:00:10]} Bxd2 {[%emt 0:01:53]} 10. Qxd5 {[%emt 0:00:04]} ({Don't play} 10. Nxd2 Qxc4 11. Nxc4 Nxd4 $15) 10... exd5 {[%emt 0:00:04]} 11. Bxd2 {[%emt 0:00:05] White is slightly better.} Bf5 {[%emt 0:00:19]} 12. Rfc1 {[%emt 0:02:27]} Rfe8 {[%emt 0:02:43]} 13. b4 {[%emt 0:07:02]} (13. e3 $14) 13... Rac8 {[%emt 0:05:37]} (13... Rxe2 $11 {keeps the balance.} 14. b5 Nd8) 14. e3 {[%emt 0:04:34]} Bd3 {[%emt 0:05:28]} 15. a4 {[%emt 1:22:47][%cal Ba2a4,Ba4b5][%mdl 32]} a6 {[%emt 0:01:02]} 16. Bh3 {[%emt 0:00:00]} Rb8 {[%emt 0:04:18]} 17. Bf1 $36 {[%emt 0:00:00][%mdl 2048] Keeping Black busy.} Bxf1 {[%emt 0:00:21]} 18. Kxf1 {[%emt 0:00:00]} Rec8 {[%emt 0:00:32]} 19. b5 {[%emt 0:00:00]} axb5 {[%emt 0:08:31]} 20. axb5 {[%emt 0:00:00]} Nd8 {[%emt 0:00:05]} 21. Ne5 {[%emt 0:00:00] Inhibits Nd7. Black is weak on the dark squares} Kf8 {[%emt 0:01:11]} 22. Ba5 {[%emt 0:00:00]} b6 {[%emt 0:04:48]} (22... Ne6 $142) 23. Bb4+ $16 {[%emt 0:00:00]} Ke8 {[%emt 0:00:03]} 24. Ra7 {[%emt 0:00:00]} Rb7 {[%emt 0:00:10]} 25. Ra2 {[%emt 0:00:00] White is much more active.} Rbb8 {[%emt 0:03:38]} 26. Rac2 {[%emt 0:00:00]} Rb7 {[%emt 0:01:36]} 27. Ra1 {[%emt 0:00:00] Repels Ra7} Rbb8 {[%emt 0:00:27]} 28. Nd3 {[%emt 0:00:00]} Ne6 {[%emt 0:03:31]} 29. Rac1 {[%emt 0:00:00]} ({White should try} 29. Rca2 $16) 29... Ra8 $11 {[%emt 0:01:34]} 30. Ne5 {[%emt 0:00:00][%cal Bd3e5,Be5c6,Bc6e7][%mdl 32]} Ra7 {[%emt 0:09:36]} (30... Nd7 $11 {deserves consideration.}) 31. f4 $14 {[%emt 0:00:00]} Ne4 {[%emt 0:03:43]} 32. Nc6 {[%emt 0:00:00]} Ra4 {[%emt 0:00:20]} 33. f5 {[%emt 0:00:00]} (33. g4 $14) 33... Nd8 $2 {[%emt 0:03:20] [#]} (33... N6g5 $1 $11 {and Black is okay.}) 34. Ne7 {[%emt 0:00:00] Weighted Error Value: White=0.19 (very precise) /Black=0.31.  Loses game:     	---       	Black=1      Mistake:       	White=3     	Black=3      Inaccurate:     	White=1     	Black=2      OK:         	White=7     	Black=9      Best:        	White=2     	Black=2} 1-0